[Event "Blixt-SM 2021"]
[Site "Elite Hotel Marina Plaza, Kungstorget 6, Helsingborg, Sweden"]
[Date "2021.11.14"]
[Round "8.1"]
[White "Olsson, Linus"]
[Black "Jepson, Christian"]
[Result "1/2-1/2"]
[TimeControl "3 minutes + 2 seconds per move."]
[WhiteTitle "FM"]
[BlackTitle "IM"]
[WhiteFideId "1706098"]
[BlackFideId "1701185"]
[WhiteElo "2204"]
[BlackElo "2412"]

1. d4 {[%clk 00:02:34]} {[%emt 00:00:29]} d5 {[%clk 00:02:57]} {[%emt
00:00:08]} 2. c4 {[%clk 00:02:34]} {[%emt 00:00:02]} e6 {[%clk 00:02:58]}
{[%emt 00:00:01]} 3. Nf3 {[%clk 00:02:34]} {[%emt 00:00:02]} Nf6 {[%clk
00:02:55]} {[%emt 00:00:05]} 4. g3 {[%clk 00:02:34]} {[%emt 00:00:02]} dxc4
{[%clk 00:02:51]} {[%emt 00:00:07]} 5. Bg2 {[%clk 00:02:34]} {[%emt 00:00:01]}
a6 {[%clk 00:02:52]} {[%emt 00:00:01]} 6. O-O {[%clk 00:02:33]} {[%emt
00:00:03]} Nc6 {[%clk 00:02:53]} {[%emt 00:00:01]} 7. a4 {[%clk 00:02:31]}
{[%emt 00:00:04]} Rb8 {[%clk 00:02:49]} {[%emt 00:00:07]} 8. e3 {[%clk
00:02:22]} {[%emt 00:00:11]} Bd7 {[%clk 00:02:48]} {[%emt 00:00:03]} 9. Qe2
{[%clk 00:02:22]} {[%emt 00:00:01]} b5 {[%clk 00:02:48]} {[%emt 00:00:02]} 10.
Rd1 {[%clk 00:02:20]} {[%emt 00:00:04]} Be7 {[%clk 00:02:36]} {[%emt 00:00:14]}
11. e4 {[%clk 00:02:17]} {[%emt 00:00:04]} Nb4 {[%clk 00:02:22]} {[%emt
00:00:16]} 12. Nc3 {[%clk 00:02:06]} {[%emt 00:00:13]} O-O {[%clk 00:02:07]}
{[%emt 00:00:18]} 13. Ne5 {[%clk 00:02:03]} {[%emt 00:00:05]} Qc8 {[%clk
00:02:04]} {[%emt 00:00:05]} 14. Nxd7 {[%clk 00:01:51]} {[%emt 00:00:14]} Nxd7
{[%clk 00:01:59]} {[%emt 00:00:06]} 15. axb5 {[%clk 00:01:52]} {[%emt
00:00:02]} axb5 {[%clk 00:01:59]} {[%emt 00:00:02]} 16. Ra7 {[%clk 00:01:48]}
{[%emt 00:00:05]} Nd3 {[%clk 00:01:41]} {[%emt 00:00:20]} 17. e5 {[%clk
00:01:26]} {[%emt 00:00:24]} c5 {[%clk 00:01:26]} {[%emt 00:00:17]} 18. Be3
{[%clk 00:01:09]} {[%emt 00:00:19]} Rd8 {[%clk 00:01:04]} {[%emt 00:00:25]} 19.
f4 {[%clk 00:00:54]} {[%emt 00:00:16]} cxd4 {[%clk 00:01:04]} {[%emt 00:00:02]}
20. Bxd4 {[%clk 00:00:55]} {[%emt 00:00:01]} Bc5 {[%clk 00:01:05]} 21. Qe3
{[%clk 00:00:24]} {[%emt 00:00:34]} Bxa7 {[%clk 00:00:40]} {[%emt 00:00:28]} 22.
Bxa7 {[%clk 00:00:24]} {[%emt 00:00:01]} Rb7 {[%clk 00:00:33]} {[%emt
00:00:09]} 23. Ne4 {[%clk 00:00:13]} {[%emt 00:00:12]} N7c5 {[%clk 00:00:11]}
{[%emt 00:00:25]} 24. Bxc5 {[%clk 00:00:14]} {[%emt 00:00:02]} Nxc5 {[%clk
00:00:08]} {[%emt 00:00:05]} 25. Rxd8+ {[%clk 00:00:14]} {[%emt 00:00:01]} Qxd8
{[%clk 00:00:09]} {[%emt 00:00:02]} 26. Qxc5 {[%clk 00:00:13]} {[%emt
00:00:02]} Rc7 {[%clk 00:00:04]} {[%emt 00:00:08]} 27. Qe3 {[%clk 00:00:13]}
{[%emt 00:00:02]} b4 {[%clk 00:00:05]} 28. Nd6 {[%clk 00:00:14]} c3 {[%clk
00:00:06]} 29. bxc3 {[%clk 00:00:14]} {[%emt 00:00:02]} bxc3 {[%clk 00:00:08]}
30. Be4 {[%clk 00:00:15]} c2 {[%clk 00:00:09]} 31. Qc1 {[%clk 00:00:15]} {[%emt
00:00:02]} Qd7 {[%clk 00:00:10]} {[%emt 00:00:02]} 32. Bxc2 {[%clk 00:00:15]}
{[%emt 00:00:02]} Qc6 {[%clk 00:00:10]} {[%emt 00:00:02]} 33. Bxh7+ {[%clk
00:00:14]} {[%emt 00:00:02]} Kxh7 {[%clk 00:00:11]} 34. Qxc6 {[%clk 00:00:15]}
{[%emt 00:00:02]} Rxc6 {[%clk 00:00:12]} 35. Nxf7 {[%clk 00:00:16]} Kg8 {[%clk
00:00:13]} {[%emt 00:00:02]} 36. Ng5 {[%clk 00:00:17]} {[%emt 00:00:01]} Rb6
{[%clk 00:00:14]} 37. Kg2 {[%clk 00:00:18]} Ra6 {[%clk 00:00:16]} 38. Kh3
{[%clk 00:00:19]} g6 {[%clk 00:00:16]} {[%emt 00:00:02]} 39. Kg4 {[%clk
00:00:20]} {[%emt 00:00:01]} Kg7 {[%clk 00:00:17]} 40. h4 {[%clk 00:00:21]}
{[%emt 00:00:01]} Rb6 {[%clk 00:00:18]} 41. Ne4 {[%clk 00:00:21]} {[%emt
00:00:01]} Rb3 {[%clk 00:00:19]} {[%emt 00:00:02]} 42. Nc5 {[%clk 00:00:22]}
{[%emt 00:00:01]} Rb6 {[%clk 00:00:19]} {[%emt 00:00:02]} 43. Nd7 {[%clk
00:00:23]} Rc6 {[%clk 00:00:20]} {[%emt 00:00:01]} 44. Nf6 {[%clk 00:00:21]}
{[%emt 00:00:03]} Ra6 {[%clk 00:00:21]} 1/2-1/2

[Event "Blixt-SM 2021"]
[Site "Elite Hotel Marina Plaza, Kungstorget 6, Helsingborg, Sweden"]
[Date "2021.11.14"]
[Round "9.8"]
[White "Agovic, Seifo"]
[Black "Mauritsson, Sebastian"]
[Result "0-1"]
[TimeControl "3 minutes + 2 seconds per move."]
[BlackTitle "FM"]
[WhiteFideId "1702360"]
[BlackFideId "1707892"]
[WhiteElo "1910"]
[BlackElo "2390"]

1. e4 {[%clk 00:03:03]} {[%emt 00:04:36]} c5 {[%clk 00:03:04]} 2. Nf3 {[%clk
00:03:04]} d6 {[%clk 00:03:05]} 3. d4 {[%clk 00:03:05]} cxd4 {[%clk 00:03:06]}
{[%emt 00:00:02]} 4. Nxd4 {[%clk 00:03:07]} Nf6 {[%clk 00:03:07]} 5. Nc3 {[%clk
00:03:08]} a6 {[%clk 00:03:09]} 6. Bc4 {[%clk 00:03:09]} {[%emt 00:00:02]} e6
{[%clk 00:03:06]} {[%emt 00:00:05]} 7. Bb3 {[%clk 00:03:10]} {[%emt 00:00:01]}
Nbd7 {[%clk 00:03:07]} 8. Bg5 {[%clk 00:03:09]} {[%emt 00:00:02]} Nc5 {[%clk
00:03:08]} {[%emt 00:00:02]} 9. f3 {[%clk 00:03:04]} {[%emt 00:00:08]} Be7
{[%clk 00:03:07]} {[%emt 00:00:02]} 10. Be3 {[%clk 00:03:03]} {[%emt 00:00:03]}
Qc7 {[%clk 00:03:06]} {[%emt 00:00:04]} 11. Qd2 {[%clk 00:03:04]} b5 {[%clk
00:03:03]} {[%emt 00:00:05]} 12. a3 {[%clk 00:02:50]} {[%emt 00:00:16]} Bb7
{[%clk 00:03:01]} {[%emt 00:00:04]} 13. O-O {[%clk 00:02:36]} {[%emt 00:00:16]}
O-O {[%clk 00:03:01]} {[%emt 00:00:02]} 14. Rad1 {[%clk 00:02:32]} {[%emt
00:00:06]} Rad8 {[%clk 00:02:58]} {[%emt 00:00:05]} 15. Qf2 {[%clk 00:02:21]}
{[%emt 00:00:12]} Rd7 {[%clk 00:02:51]} {[%emt 00:00:09]} 16. Kh1 {[%clk
00:02:20]} {[%emt 00:00:02]} Nxb3 {[%clk 00:02:52]} {[%emt 00:00:01]} 17. Nxb3
{[%clk 00:02:21]} {[%emt 00:00:02]} d5 {[%clk 00:02:52]} {[%emt 00:00:02]} 18.
exd5 {[%clk 00:02:20]} {[%emt 00:00:04]} Nxd5 {[%clk 00:02:53]} {[%emt
00:00:01]} 19. Nxd5 {[%clk 00:02:21]} Rxd5 {[%clk 00:02:46]} {[%emt 00:00:09]}
20. Nd4 {[%clk 00:02:22]} Rfd8 {[%clk 00:02:44]} {[%emt 00:00:04]} 21. c3
{[%clk 00:02:22]} {[%emt 00:00:02]} Qd7 {[%clk 00:02:42]} {[%emt 00:00:04]} 22.
Rde1 {[%clk 00:02:13]} {[%emt 00:00:10]} Bf6 {[%clk 00:02:38]} {[%emt
00:00:07]} 23. Nc2 {[%clk 00:02:11]} {[%emt 00:00:04]} g6 {[%clk 00:02:34]}
{[%emt 00:00:06]} 24. Bb6 {[%clk 00:02:00]} {[%emt 00:00:13]} Rc8 {[%clk
00:02:34]} {[%emt 00:00:02]} 25. Bd4 {[%clk 00:02:00]} {[%emt 00:00:02]} e5
{[%clk 00:02:29]} {[%emt 00:00:07]} 26. Be3 {[%clk 00:01:46]} {[%emt 00:00:15]}
Bg7 {[%clk 00:02:31]} {[%emt 00:00:01]} 27. Nb4 {[%clk 00:01:47]} Rd6 {[%clk
00:02:31]} {[%emt 00:00:02]} 28. Qe2 {[%clk 00:01:39]} {[%emt 00:00:10]} a5
{[%clk 00:02:23]} {[%emt 00:00:10]} 29. Nc2 {[%clk 00:01:37]} {[%emt 00:00:03]}
b4 {[%clk 00:02:23]} {[%emt 00:00:03]} 30. axb4 {[%clk 00:01:37]} {[%emt
00:00:02]} Ba6 {[%clk 00:02:24]} 31. Qf2 {[%clk 00:01:32]} {[%emt 00:00:07]}
axb4 {[%clk 00:02:21]} {[%emt 00:00:05]} 32. Nxb4 {[%clk 00:01:29]} {[%emt
00:00:05]} Bxf1 {[%clk 00:02:21]} {[%emt 00:00:01]} 33. Rxf1 {[%clk 00:01:30]}
Rd1 {[%clk 00:02:21]} {[%emt 00:00:03]} 34. c4 {[%clk 00:01:17]} {[%emt
00:00:16]} Rxc4 {[%clk 00:02:11]} {[%emt 00:00:11]} 35. Na2 {[%clk 00:01:14]}
{[%emt 00:00:05]} Ra4 {[%clk 00:02:08]} {[%emt 00:00:05]} 36. Nc3 {[%clk
00:01:15]} Rxf1+ {[%clk 00:02:06]} {[%emt 00:00:05]} 37. Qxf1 {[%clk 00:01:14]}
{[%emt 00:00:02]} Ra5 {[%clk 00:02:06]} {[%emt 00:00:02]} 38. h4 {[%clk
00:01:11]} {[%emt 00:00:05]} h5 {[%clk 00:02:05]} {[%emt 00:00:02]} 39. Kh2
{[%clk 00:01:12]} {[%emt 00:00:02]} Qe7 {[%clk 00:02:01]} {[%emt 00:00:06]} 40.
g3 {[%clk 00:01:10]} {[%emt 00:00:04]} Qb4 {[%clk 00:01:59]} {[%emt 00:00:04]}
41. Qc1 {[%clk 00:01:09]} {[%emt 00:00:03]} Ra8 {[%clk 00:01:58]} {[%emt
00:00:03]} 42. Nd5 {[%clk 00:01:08]} {[%emt 00:00:02]} Qb7 {[%clk 00:01:58]}
{[%emt 00:00:02]} 43. Qc5 {[%clk 00:01:06]} {[%emt 00:00:05]} Qxb2+ {[%clk
00:01:58]} {[%emt 00:00:02]} 44. Kh3 {[%clk 00:01:05]} {[%emt 00:00:50]} Ra2
{[%clk 00:02:53]} {[%emt 00:00:06]} 45. Bf2 {[%clk 00:00:44]} {[%emt 00:00:22]}
Qxf2 46. Qxf2 {[%clk 00:00:45]} Rxf2 {[%clk 00:02:52]} {[%emt 00:00:01]} 47. f4
{[%clk 00:00:45]} {[%emt 00:00:02]} exf4 {[%clk 00:02:50]} {[%emt 00:00:04]} 48.
Nxf4 {[%clk 00:00:46]} Rf3 {[%clk 00:02:49]} {[%emt 00:00:03]} 49. Kg2 {[%clk
00:00:47]} {[%emt 00:00:01]} Ra3 {[%clk 00:02:50]} 50. Nd5 {[%clk 00:00:47]}
{[%emt 00:00:01]} Be5 {[%clk 00:02:50]} {[%emt 00:00:03]} 51. Ne7+ {[%clk
00:00:48]} Kf8 {[%clk 00:02:51]} 52. Nxg6+ {[%clk 00:00:49]} fxg6 {[%emt
00:00:01]} 0-1

[Event "Blixt-SM 2021"]
[Site "Elite Hotel Marina Plaza, Kungstorget 6, Helsingborg, Sweden"]
[Date "2021.11.14"]
[Round "11.7"]
[White "Frisk, Ellinor"]
[Black "Rosell, Tomas"]
[Result "0-1"]
[TimeControl "3 minutes + 2 seconds per move."]
[WhiteTitle "WIM"]
[WhiteFideId "1708481"]
[BlackFideId "1707132"]
[WhiteElo "2142"]
[BlackElo "2070"]

1. Nf3 {[%clk 00:03:03]} {[%emt 00:10:04]} f5 {[%clk 00:03:03]} {[%emt
00:00:01]} 2. d3 {[%clk 00:03:00]} {[%emt 00:00:05]} Nc6 {[%clk 00:03:03]}
{[%emt 00:00:02]} 3. e4 {[%clk 00:02:58]} {[%emt 00:00:04]} e5 {[%clk
00:03:04]} 4. Nc3 {[%clk 00:02:51]} {[%emt 00:00:09]} Nf6 {[%clk 00:03:05]} 5.
Bg5 {[%clk 00:02:42]} {[%emt 00:00:11]} Bb4 {[%clk 00:03:06]} 6. Be2 {[%clk
00:02:32]} {[%emt 00:00:12]} O-O {[%clk 00:03:06]} {[%emt 00:00:02]} 7. O-O
{[%clk 00:02:32]} {[%emt 00:00:02]} d6 {[%clk 00:03:05]} {[%emt 00:00:03]} 8.
Nd5 {[%clk 00:02:28]} {[%emt 00:00:06]} Bc5 {[%clk 00:03:04]} {[%emt 00:00:03]}
9. Nxf6+ {[%clk 00:02:22]} {[%emt 00:00:07]} gxf6 {[%clk 00:03:05]} {[%emt
00:00:01]} 10. Bh6 {[%clk 00:02:24]} Re8 {[%clk 00:02:57]} {[%emt 00:00:09]} 11.
Nh4 {[%clk 00:02:22]} {[%emt 00:00:04]} f4 {[%clk 00:02:46]} {[%emt 00:00:14]}
12. Bg4 {[%clk 00:02:10]} {[%emt 00:00:14]} f5 {[%clk 00:02:11]} {[%emt
00:00:38]} 13. Nxf5 {[%clk 00:01:51]} {[%emt 00:00:20]} Qf6 {[%clk 00:01:40]}
{[%emt 00:00:32]} 14. Bg7 {[%clk 00:01:11]} {[%emt 00:00:42]} Qg5 {[%clk
00:01:40]} {[%emt 00:00:02]} 15. h4 {[%clk 00:00:56]} {[%emt 00:00:16]} Qd8
{[%clk 00:01:41]} 16. Bh6 {[%clk 00:00:42]} {[%emt 00:00:16]} Bxf5 {[%clk
00:01:11]} {[%emt 00:00:33]} 17. Bg5 {[%clk 00:00:19]} {[%emt 00:00:25]} Bxg4
{[%clk 00:01:11]} {[%emt 00:00:02]} 18. Qxg4 {[%clk 00:00:18]} {[%emt
00:00:02]} Qc8 {[%clk 00:01:13]} 19. Qh5 {[%clk 00:00:15]} {[%emt 00:00:05]}
Qe6 {[%clk 00:01:07]} {[%emt 00:00:07]} 20. Kh2 {[%clk 00:00:05]} {[%emt
00:00:13]} Qg6 {[%clk 00:00:55]} {[%emt 00:00:14]} 21. Qf3 {[%clk 00:00:03]}
{[%emt 00:00:03]} Nd4 {[%clk 00:00:55]} {[%emt 00:00:02]} 22. Qh3 {[%clk
00:00:03]} {[%emt 00:00:02]} h6 {[%clk 00:00:51]} {[%emt 00:00:06]} 0-1

[Event "Blixt-SM 2021"]
[Site "Elite Hotel Marina Plaza, Kungstorget 6, Helsingborg, Sweden"]
[Date "2021.11.14"]
[Round "13.5"]
[White "Mauritsson, Sebastian"]
[Black "Rajcevski, Dejan"]
[Result "1-0"]
[TimeControl "3 minutes + 2 seconds per move."]
[WhiteTitle "FM"]
[WhiteFideId "1707892"]
[BlackFideId "1759027"]
[WhiteElo "2390"]
[BlackElo "1977"]

1. e4 {[%clk 00:03:04]} e5 {[%clk 00:03:01]} {[%emt 00:00:04]} 2. Nf3 {[%clk
00:03:05]} {[%emt 00:00:01]} Nf6 {[%clk 00:03:02]} 3. Nc3 {[%clk 00:03:05]}
{[%emt 00:00:02]} Bb4 {[%clk 00:03:03]} 4. Nxe5 {[%clk 00:03:06]} {[%emt
00:00:02]} d6 {[%clk 00:03:04]} 5. Nd3 {[%clk 00:03:06]} {[%emt 00:00:01]} Bxc3
{[%clk 00:03:05]} {[%emt 00:00:02]} 6. dxc3 {[%clk 00:03:07]} Nxe4 {[%clk
00:03:06]} 7. Be2 {[%clk 00:03:07]} {[%emt 00:00:02]} O-O {[%clk 00:03:07]}
{[%emt 00:00:01]} 8. O-O {[%clk 00:03:06]} {[%emt 00:00:03]} Re8 {[%clk
00:03:08]} 9. Nf4 {[%clk 00:03:00]} {[%emt 00:00:09]} c6 {[%clk 00:03:05]}
{[%emt 00:00:05]} 10. c4 {[%clk 00:02:56]} {[%emt 00:00:06]} Bf5 {[%clk
00:03:00]} {[%emt 00:00:06]} 11. Bf3 {[%clk 00:02:44]} {[%emt 00:00:14]} Ng5
{[%clk 00:02:57]} {[%emt 00:00:05]} 12. Be2 {[%clk 00:02:41]} {[%emt 00:00:05]}
Ne6 {[%clk 00:02:50]} {[%emt 00:00:09]} 13. Nxe6 {[%clk 00:02:33]} {[%emt
00:00:11]} Rxe6 {[%clk 00:02:48]} {[%emt 00:00:04]} 14. Bf4 {[%clk 00:02:30]}
{[%emt 00:00:05]} Qe7 {[%clk 00:02:42]} {[%emt 00:00:07]} 15. Bf3 {[%clk
00:02:24]} {[%emt 00:00:08]} Na6 {[%clk 00:02:32]} {[%emt 00:00:13]} 16. Qd2
{[%clk 00:02:13]} {[%emt 00:00:12]} Nc5 {[%clk 00:02:28]} {[%emt 00:00:06]} 17.
Rad1 {[%clk 00:02:12]} {[%emt 00:00:03]} Rd8 {[%clk 00:02:25]} {[%emt
00:00:06]} 18. Rfe1 {[%clk 00:01:55]} {[%emt 00:00:19]} Ne4 {[%clk 00:02:15]}
{[%emt 00:00:12]} 19. Bxe4 {[%clk 00:01:42]} {[%emt 00:00:14]} Rxe4 {[%clk
00:02:05]} {[%emt 00:00:12]} 20. Bxd6 {[%clk 00:01:33]} {[%emt 00:00:11]} Rxe1+
{[%clk 00:01:27]} {[%emt 00:00:40]} 21. Rxe1 {[%clk 00:01:28]} {[%emt
00:00:07]} Qf6 {[%clk 00:00:58]} {[%emt 00:00:31]} 22. Qe2 {[%clk 00:01:14]}
{[%emt 00:00:16]} Be6 {[%clk 00:00:50]} {[%emt 00:00:10]} 23. Be5 {[%clk
00:01:13]} {[%emt 00:00:03]} Qg6 {[%clk 00:00:47]} {[%emt 00:00:05]} 24. b3
{[%clk 00:01:11]} {[%emt 00:00:03]} h6 {[%clk 00:00:43]} {[%emt 00:00:06]} 25.
Bc3 {[%clk 00:01:10]} {[%emt 00:00:04]} Bf5 {[%clk 00:00:41]} {[%emt 00:00:03]}
26. Qe7 {[%clk 00:01:04]} {[%emt 00:00:08]} Rd7 {[%clk 00:00:34]} {[%emt
00:00:10]} 27. Qe8+ {[%clk 00:01:03]} {[%emt 00:00:03]} Kh7 {[%clk 00:00:35]}
28. h4 {[%clk 00:00:55]} {[%emt 00:00:09]} h5 {[%clk 00:00:19]} {[%emt
00:00:18]} 29. g3 {[%clk 00:00:55]} {[%emt 00:00:02]} Rd6 {[%clk 00:00:14]}
{[%emt 00:00:08]} 30. Qf8 {[%clk 00:00:55]} {[%emt 00:00:02]} Re6 {[%clk
00:00:13]} {[%emt 00:00:03]} 31. Rd1 {[%clk 00:00:52]} {[%emt 00:00:04]} Bxc2
{[%clk 00:00:11]} {[%emt 00:00:04]} 32. Rd8 {[%clk 00:00:49]} {[%emt 00:00:05]}
Qg4 {[%clk 00:00:03]} {[%emt 00:00:10]} 33. Qh8+ {[%clk 00:00:48]} {[%emt
00:00:03]} Kg6 {[%clk 00:00:05]} 34. Qxg7+ {[%clk 00:00:48]} {[%emt 00:00:02]}
Kf5 {[%clk 00:00:05]} {[%emt 00:00:01]} 35. Qxf7+ {[%clk 00:00:48]} {[%emt
00:00:03]} Ke4 {[%clk 00:00:05]} {[%emt 00:00:02]} 36. Rd4+ {[%clk 00:00:47]}
{[%emt 00:00:03]} 1-0

[ePGN "0.1;DGT LiveChess/2.2.5"]

[Event "Blixt-SM 2021"]
[Site "Elite Hotel Marina Plaza, Kungstorget 6, Helsingborg, Sweden"]
[Date "2021.11.14"]
[Round "1.1"]
[White "Nilsson, Kristoffer"]
[Black "Smith, Axel"]
[Result "0-1"]
[TimeControl "3 minutes + 2 seconds per move."]
[BlackTitle "GM"]
[WhiteFideId "1718487"]
[BlackFideId "1707930"]
[WhiteElo "1785"]
[BlackElo "2473"]

1. d4 {[%clk 00:03:03]} Nf6 {[%clk 00:03:03]} {[%emt 00:00:02]} 2. Nf3 {[%clk
00:03:02]} {[%emt 00:00:02]} c5 {[%clk 00:03:05]} 3. d5 {[%emt 00:00:07]} b5 4.
Bg5 {[%clk 00:02:40]} {[%emt 00:00:19]} g6 {[%clk 00:03:08]} 5. e3 {[%clk
00:02:36]} {[%emt 00:00:06]} b4 {[%clk 00:03:05]} {[%emt 00:00:05]} 6. c3
{[%clk 00:02:27]} {[%emt 00:00:11]} Bg7 {[%clk 00:03:00]} {[%emt 00:00:06]} 7.
Qc2 {[%clk 00:02:22]} {[%emt 00:00:07]} Nxd5 {[%clk 00:02:31]} {[%emt
00:00:32]} 8. Bc4 {[%clk 00:02:21]} {[%emt 00:00:03]} Nb6 {[%clk 00:02:24]}
{[%emt 00:00:09]} 9. Bd3 {[%clk 00:02:03]} {[%emt 00:00:19]} Nc6 {[%clk
00:02:20]} {[%emt 00:00:07]} 10. O-O {[%clk 00:01:51]} {[%emt 00:00:14]} d6
{[%clk 00:02:10]} {[%emt 00:00:12]} 11. a3 {[%clk 00:01:43]} {[%emt 00:00:10]}
Bb7 {[%clk 00:01:51]} {[%emt 00:00:21]} 12. Nbd2 {[%clk 00:01:31]} {[%emt
00:00:14]} O-O {[%clk 00:01:45]} {[%emt 00:00:08]} 13. h4 {[%clk 00:01:24]}
{[%emt 00:00:09]} h6 {[%clk 00:01:32]} {[%emt 00:00:16]} 14. Bf4 {[%clk
00:01:05]} {[%emt 00:00:20]} e5 {[%clk 00:01:33]} {[%emt 00:00:01]} 15. Bh2
{[%clk 00:01:06]} f5 {[%clk 00:01:26]} {[%emt 00:00:09]} 16. e4 {[%clk
00:00:44]} {[%emt 00:00:25]} f4 {[%clk 00:01:28]} 17. g3 {[%clk 00:00:27]}
{[%emt 00:00:18]} fxg3 {[%clk 00:01:17]} {[%emt 00:00:14]} 18. Bxg3 {[%clk
00:00:12]} {[%emt 00:00:17]} Qe7 {[%clk 00:01:18]} 19. Kh2 {[%clk 00:00:08]}
{[%emt 00:00:06]} Rf6 {[%clk 00:01:07]} {[%emt 00:00:13]} 20. Ng1 {[%clk
00:00:09]} {[%emt 00:00:01]} Raf8 {[%clk 00:01:07]} {[%emt 00:00:02]} 21. f3
{[%clk 00:00:09]} {[%emt 00:00:01]} bxc3 {[%clk 00:00:49]} {[%emt 00:00:20]} 22.
Qxc3 {[%clk 00:00:09]} {[%emt 00:00:02]} Nd4 {[%clk 00:00:48]} {[%emt
00:00:03]} 23. Bc4+ {[%clk 00:00:09]} {[%emt 00:00:03]} Kh7 {[%clk 00:00:46]}
{[%emt 00:00:04]} 24. Qe3 {[%clk 00:00:08]} {[%emt 00:00:02]} Nc2 {[%clk
00:00:44]} {[%emt 00:00:04]} 25. Qd3 {[%clk 00:00:09]} {[%emt 00:00:01]} Nxa1
{[%clk 00:00:44]} {[%emt 00:00:02]} 26. Rxa1 {[%clk 00:00:10]} Bc8 {[%clk
00:00:42]} {[%emt 00:00:05]} 27. Rf1 {[%clk 00:00:10]} {[%emt 00:00:02]} Be6
{[%clk 00:00:40]} {[%emt 00:00:05]} 28. Bxe6 {[%clk 00:00:08]} {[%emt
00:00:04]} Qxe6 {[%clk 00:00:41]} {[%emt 00:00:01]} 29. Nh3 {[%clk 00:00:07]}
{[%emt 00:00:02]} d5 {[%clk 00:00:33]} {[%emt 00:00:10]} 30. Qe3 {[%clk
00:00:07]} {[%emt 00:00:03]} d4 {[%clk 00:00:33]} {[%emt 00:00:02]} 31. Qd3
{[%emt 00:00:02]} c4 32. Qb1 {[%clk 00:00:03]} {[%emt 00:00:05]} c3 {[%clk
00:00:36]} 33. bxc3 {[%clk 00:00:04]} {[%emt 00:00:02]} dxc3 {[%clk 00:00:38]}
0-1